[Event "1st Gujarat GM Open 2018"]
[Site "Ahmedabad"]
[Date "2018.10.09"]
[Round "6"]
[White "Karthik Venkataraman"]
[Black "Bharath Subramaniyam H"]
[Result "1-0"]
[ECO "A01"]
[WhiteElo "2525"]
[BlackElo "2276"]
[Annotator "RC"]
[PlyCount "149"]
[EventDate "2018.10.05"]
[EventType "swiss"]
[EventCountry "IND"]
[SourceTitle "playchess.com"]
[Source "ChessBase"]
[SourceQuality "1"]
[TimeControl "5400+30"]

1. b3 {[%emt 0:04:01]} e5 {[%emt 0:00:00]} 2. Bb2 {[%emt 0:00:05]} Nc6 {[%emt 0:00:22]} 3. e3 {[%emt 0:00:04]} Nf6 {[%emt 0:00:12]} 4. Nf3 {[%emt 0:00:04]} e4 {[%emt 0:00:47]} 5. Nd4 {[%emt 0:00:03]} Bc5 {[%emt 0:00:58]} 6. Nxc6 {[%emt 0:00:46]} dxc6 {[%emt 0:01:40]} 7. Be2 {[%emt 0:00:07]} O-O {[%emt 0:02:03]} 8. d4 {[%emt 0:01:42]} Bd6 {[%emt 0:10:15]} 9. c4 {[%emt 0:01:17]} c5 {[%emt 0:02:31]} 10. d5 {[%emt 0:03:07]} Qe7 {[%emt 0:02:32]} 11. Nc3 {[%emt 0:00:11]} Bf5 {[%emt 0:02:15]} 12. Qc2 {[%emt 0:02:10]} Rfe8 {[%emt 0:02:11]} 13. h3 {[%emt 0:01:26]} Nd7 {[%emt 0:03:13]} 14. g4 {[%emt 0:00:39]} Bg6 {[%emt 0:00:12]} 15. h4 {[%emt 0:00:05]} h6 {[%emt 0:00:39]} 16. O-O-O {[%emt 0:04:35]} Ne5 {[%emt 0:02:55]} 17. h5 {[%emt 0:14:47]} Nd3+ {[%emt 0:01:57]} 18. Bxd3 {[%emt 0:00:17]} exd3 {[%emt 0:00:08]} 19. Qd2 {[%emt 0:00:03]} Bh7 {[%emt 0:00:15]} 20. g5 {[%emt 0:00:22]} hxg5 {[%emt 0:13:26]} 21. h6 {[%emt 0:00:07]} Be5 {[%emt 0:01:47]} 22. hxg7 {[%emt 0:00:12]} Qf6 {[%emt 0:00:23]} 23. Rdg1 {[%emt 0:10:14]} Bg6 {[%emt 0:01:52]} 24. Rg3 {[%emt 0:20:08]} Kxg7 {[%emt 0:06:42]} 25. Rhg1 {[%emt 0:00:30]} Bxg3 {[%emt 0:38:38]} 26. Ne4 {[%emt 0:02:26]} Qxb2+ {[%emt 0:00:56]} 27. Kxb2 {[%emt 0:01:28]} Be5+ {[%emt 0:00:07]} 28. Nc3 {[%emt 0:00:04]} Bf6 {[%emt 0:00:07]} 29. Kc1 {[%emt 0:00:41]} Rh8 {[%emt 0:01:59]} 30. Nb5 {[%emt 0:00:51]} c6 {[%emt 0:01:22]} 31. dxc6 {[%emt 0:03:13]} bxc6 {[%emt 0:00:01]} 32. Nc7 {[%emt 0:01:14]} Rad8 {[%emt 0:00:06]} 33. Na6 {[%emt 0:01:48]} Rh2 {[%emt 0:01:28]} 34. Nxc5 {[%emt 0:00:21]} Be7 {[%emt 0:00:12]} 35. b4 {[%emt 0:01:57]} a5 {[%emt 0:02:35]} 36. a3 {[%emt 0:04:36]} axb4 {[%emt 0:00:02]} 37. axb4 {[%emt 0:00:04]} Ra8 {[%emt 0:00:29]} 38. Kb2 {[%emt 0:00:16]} Bf6+ {[%emt 0:01:09]} 39. Kb3 {[%emt 0:00:02]} Rh4 {[%emt 0:00:28]} 40. e4 {[%emt 0:00:27]} Rd8 {[%emt 0:00:29]} 41. f3 {[%emt 0:08:38]} Rh3 {[%emt 0:00:30]} 42. Rf1 {[%emt 0:00:04]} Rg3 {[%emt 0:00:26]} 43. Qf2 {[%emt 0:01:48]} Be5 {[%emt 0:00:08]} 44. Qd2 {[%emt 0:03:55]} Bf6 {[%emt 0:00:56]} 45. b5 {[%emt 0:03:06]} cxb5 {[%emt 0:00:25]} 46. cxb5 {[%emt 0:00:04]} Be7 {[%emt 0:00:34]} 47. Qc3+ {[%emt 0:00:25]} Kg8 {[%emt 0:00:26]} 48. Nb7 {[%emt 0:00:37]} Ra8 {[%emt 0:00:23]} 49. Qe5 {[%emt 0:01:19]} Ra3+ {[%emt 0:00:30]} 50. Kc4 {[%emt 0:00:09]} Ra4+ {[%emt 0:00:36]} 51. Kd5 {[%emt 0:00:49]} Rg2 {[%emt 0:00:39]} 52. Qxe7 {[%emt 0:00:16]} d2 {[%emt 0:00:02]} 53. Rh1 {[%emt 0:01:11]} Ra8 {[%emt 0:00:41]} 54. Nd6 {[%emt 0:01:20]} Rh2 {[%emt 0:00:17]} 55. Rd1 {[%emt 0:00:08]} Ra3 {[%emt 0:00:29]} 56. Qxg5 {[%emt 0:01:03]} Rh5 {[%emt 0:00:12]} 57. Qxh5 {[%emt 0:00:16]} Bxh5 {[%emt 0:00:02]} 58. Rxd2 {[%emt 0:00:07]} Bxf3 {[%emt 0:00:11]} 59. b6 {[%emt 0:00:31]} Rb3 {[%emt 0:01:39]} 60. b7 {[%emt 0:00:52]} f5 {[%emt 0:00:11]} 61. Kc4 {[%emt 0:00:06]} Rb6 {[%emt 0:01:17]} 62. Kc5 {[%emt 0:00:07]} Rxb7 {[%emt 0:00:28]} 63. Nxb7 {[%emt 0:00:04]} fxe4 {[%emt 0:00:04]} 64. Nd6 {[%emt 0:00:15]} e3 {[%emt 0:00:06]} 65. Rd3 {[%emt 0:00:04]} e2 66. Re3 {[%emt 0:00:04]} Kg7 {[%emt 0:00:11]} 67. Nf5+ {[%emt 0:00:06]} Kf6 68. Nd4 {[%emt 0:00:04]} Bh5 {[%emt 0:00:08]} 69. Nxe2 {[%emt 0:00:05]} Kg5 {[%emt 0:00:13]} 70. Kd4 {[%emt 0:00:19]} Bf7 {[%emt 0:00:05]} 71. Ke5 {[%emt 0:00:06]} Bc4 {[%emt 0:00:03]} 72. Nd4 {[%emt 0:00:11]} Kg4 {[%emt 0:00:04]} 73. Nf5 {[%emt 0:00:05]} Bf7 {[%emt 0:00:22]} 74. Rg3+ {[%emt 0:00:06]} Kh5 {[%emt 0:00:04]} 75. Kf4 {[%emt 0:00:05]} 1-0

[Event "1st Gujarat GM Open 2018"]
[Site "Ahmedabad"]
[Date "2018.10.09"]
[Round "6"]
[White "Stany, G.A."]
[Black "Babujian, Levon"]
[Result "1-0"]
[ECO "B80"]
[WhiteElo "2502"]
[BlackElo "2456"]
[Annotator "ChessBase"]
[PlyCount "119"]
[EventDate "2018.10.05"]
[EventType "swiss"]
[EventCountry "IND"]
[SourceTitle "playchess.com"]
[Source "ChessBase"]
[SourceQuality "1"]
[TimeControl "5400+30"]

1. e4 {[%emt 0:00:00]} c5 {[%emt 0:00:00]} 2. Nf3 {[%emt 0:00:00]} d6 {[%emt 0:00:00]} 3. d4 {[%emt 0:00:00]} cxd4 {[%emt 0:00:00]} 4. Nxd4 {[%emt 0:00:00]} Nf6 {[%emt 0:00:00]} 5. Nc3 {[%emt 0:00:00]} a6 {[%emt 0:00:05]} 6. Be3 {[%emt 0:00:00]} e6 {[%emt 0:00:08]} 7. Qd2 {[%emt 0:00:00]} b5 {[%emt 0:00:53]} 8. f3 {[%emt 0:00:00]} Bb7 {[%emt 0:00:25]} 9. O-O-O {[%emt 0:09:59]} Nbd7 {[%emt 0:00:19]} 10. g4 {[%emt 0:07:17]} Nb6 {[%emt 0:00:40]} 11. Qf2 {[%emt 0:05:05]} Nfd7 {[%emt 0:00:24]} 12. Kb1 {[%emt 0:03:25]} Rc8 {[%emt 0:00:17]} 13. Nce2 {[%emt 0:01:11]} Qc7 {[%emt 0:02:02]} 14. Ng3 {[%emt 0:03:24]} Na4 {[%emt 0:00:41]} 15. c3 {[%emt 0:13:36]} Be7 {[%emt 0:02:32]} 16. h4 {[%emt 0:01:26]} Ndc5 {[%emt 0:01:24]} 17. Rc1 {[%emt 0:04:53]} d5 {[%emt 0:02:36]} 18. exd5 {[%emt 0:01:21]} Bxd5 {[%emt 0:00:14]} 19. c4 {[%emt 0:14:29]} bxc4 {[%emt 0:00:44]} 20. Bxc4 {[%emt 0:00:03]} Bxc4 {[%emt 0:01:43]} 21. Rxc4 {[%emt 0:00:05]} Nxb2 {[%emt 0:09:13]} 22. Qxb2 {[%emt 0:10:38]} Qxg3 {[%emt 0:01:18]} 23. Nb3 {[%emt 0:00:40]} Qxf3 {[%emt 0:03:07]} 24. Qc1 {[%emt 0:00:23]} Qb7 {[%emt 0:02:48]} 25. Rd1 {[%emt 0:03:19]} O-O {[%emt 0:04:23]} 26. Bxc5 {[%emt 0:00:16]} Bxc5 {[%emt 0:00:39]} 27. Rxc5 {[%emt 0:00:04]} Rxc5 {[%emt 0:00:09]} 28. Qxc5 {[%emt 0:00:05]} Qe4+ {[%emt 0:00:02]} 29. Kb2 {[%emt 0:01:26]} Qxg4 {[%emt 0:00:15]} 30. Rd4 {[%emt 0:00:43]} Qe2+ {[%emt 0:02:33]} 31. Rd2 {[%emt 0:00:12]} Qf3 {[%emt 0:00:39]} 32. Qc4 {[%emt 0:09:56]} Qf6+ {[%emt 0:00:48]} 33. Ka3 {[%emt 0:01:29]} e5 {[%emt 0:00:20]} 34. Rd7 {[%emt 0:00:07]} h5 {[%emt 0:02:24]} 35. Nd2 {[%emt 0:01:48]} Qf5 {[%emt 0:03:25]} 36. Re7 {[%emt 0:04:47]} Qf6 {[%emt 0:03:14]} 37. Rd7 {[%emt 0:00:32]} Qf5 {[%emt 0:03:14]} 38. Re7 {[%emt 0:00:02]} Rb8 {[%emt 0:03:03]} 39. Ne4 {[%emt 0:01:10]} Qf3+ {[%emt 0:04:21]} 40. Ka4 {[%emt 0:00:59]} a5 {[%emt 0:02:35]} 41. Rb7 {[%emt 0:00:54]} Rf8 {[%emt 0:03:11]} 42. Kxa5 {[%emt 0:02:28]} Kh8 {[%emt 0:03:01]} 43. a4 {[%emt 0:00:48]} Qd1 {[%emt 0:05:04]} 44. Ng5 {[%emt 0:01:49]} Qd2+ {[%emt 0:09:26]} 45. Kb6 {[%emt 0:00:49]} f6 {[%emt 0:01:00]} 46. Nf7+ {[%emt 0:00:23]} Kh7 {[%emt 0:00:04]} 47. a5 {[%emt 0:00:35]} Qe3+ {[%emt 0:01:39]} 48. Kc7 {[%emt 0:00:25]} e4 {[%emt 0:00:21]} 49. a6 {[%emt 0:00:24]} Ra8 {[%emt 0:04:59]} 50. Nd6 {[%emt 0:00:20]} Qd3 {[%emt 0:00:35]} 51. a7 {[%emt 0:00:33]} f5 {[%emt 0:15:18]} 52. Qxd3 {[%emt 0:00:40]} exd3 {[%emt 0:00:04]} 53. Nxf5 {[%emt 0:00:03]} g5 54. Kb6+ {[%emt 0:01:08]} Kg6 {[%emt 0:00:16]} 55. Ne3 {[%emt 0:00:09]} gxh4 {[%emt 0:02:09]} 56. Rd7 {[%emt 0:00:03]} h3 {[%emt 0:00:11]} 57. Nf1 {[%emt 0:00:09]} Rf8 {[%emt 0:00:34]} 58. Nh2 {[%emt 0:00:27]} Kg5 {[%emt 0:01:01]} 59. Rxd3 {[%emt 0:00:45]} Kh4 {[%emt 0:00:16]} 60. Rc3 {[%emt 0:00:15]} 1-0

[Event "1st Gujarat GM Open 2018"]
[Site "Ahmedabad"]
[Date "2018.10.09"]
[Round "6"]
[White "Kadam Om Manish"]
[Black "Zia, Tahsin Tajwar"]
[Result "1/2-1/2"]
[ECO "B89"]
[WhiteElo "2082"]
[BlackElo "1825"]
[Annotator "NA RC"]
[PlyCount "105"]
[EventDate "2018.10.05"]
[EventType "swiss"]
[EventCountry "IND"]
[SourceTitle "playchess.com"]
[Source "ChessBase"]
[SourceQuality "1"]
[TimeControl "5400+30"]

1. e4 {[%emt 0:00:00]} c5 {[%emt 0:00:00]} 2. Nf3 {[%emt 0:00:11]} d6 {[%emt 0:00:08]} 3. d4 {[%emt 0:00:22]} cxd4 {[%emt 0:00:02]} 4. Nxd4 {[%emt 0:00:17]} Nf6 {[%emt 0:00:07]} 5. Nc3 {[%emt 0:00:12]} Nc6 {[%emt 0:00:34]} 6. Bc4 {[%emt 0:01:30]} e6 {[%emt 0:00:10]} 7. Be3 {[%emt 0:00:36]} a6 {[%emt 0:00:06]} 8. Qe2 {[%emt 0:02:01]} Qc7 {[%emt 0:00:27]} 9. Bb3 {[%emt 0:04:07]} Na5 {[%emt 0:01:02]} 10. O-O {[%emt 0:12:49]} Bd7 {[%emt 0:00:55]} 11. a4 {[%emt 0:00:48]} Rc8 {[%emt 0:04:01]} 12. Rad1 {[%emt 0:02:30]} Be7 {[%emt 0:03:50]} 13. Ba2 {[%emt 0:04:52]} O-O {[%emt 0:03:45]} 14. f4 {[%emt 0:03:19]} Nc4 {[%emt 0:07:07]} 15. Bc1 {[%emt 0:08:51]} b5 {[%emt 0:08:18]} 16. axb5 {[%emt 0:13:39]} axb5 {[%emt 0:05:52]} 17. e5 {[%emt 0:05:38]} dxe5 {[%emt 0:04:53]} 18. fxe5 {[%emt 0:00:17]} Nd5 {[%emt 0:01:14]} 19. Nxd5 {[%emt 0:07:40]} exd5 {[%emt 0:00:12]} 20. c3 {[%emt 0:02:12]} b4 {[%emt 0:02:33]} 21. Rde1 {[%emt 0:12:18]} Bc5 {[%emt 0:02:07]} 22. Bb1 {[%emt 0:01:59]} Qb6 {[%emt 0:03:41]} 23. Qd3 {[%emt 0:05:29]} g6 24. Rf6 {[%emt 0:01:26]} Nxe5 {[%emt 0:04:55]} 25. Qf1 {[%emt 0:03:02]} Bxd4+ {[%emt 0:05:44]} 26. cxd4 {[%emt 0:00:11]} Qxd4+ {[%emt 0:01:31]} 27. Be3 {[%emt 0:02:45]} Qc4 {[%emt 0:02:36]} 28. Qxc4 {[%emt 0:02:51]} dxc4 {[%emt 0:01:10]} 29. Bd2 {[%emt 0:01:16]} c3 {[%emt 0:02:06]} 30. bxc3 {[%emt 0:00:18]} bxc3 {[%emt 0:00:03]} 31. Bxc3 {[%emt 0:00:53]} Rxc3 {[%emt 0:02:08]} 32. Rxe5 {[%emt 0:00:05]} Be6 {[%emt 0:01:14]} 33. Re1 {[%emt 0:00:46]} Rb8 {[%emt 0:00:47]} 34. Be4 {[%emt 0:00:43]} Kg7 {[%emt 0:01:02]} 35. Rf2 {[%emt 0:00:05]} f5 {[%emt 0:01:47]} 36. Bf3 {[%emt 0:00:16]} Kf6 {[%emt 0:00:47]} 37. Rd2 {[%emt 0:00:06]} Rb6 {[%emt 0:01:14]} 38. Red1 {[%emt 0:00:55]} g5 {[%emt 0:02:01]} 39. h3 {[%emt 0:00:53]} f4 {[%emt 0:03:18]} 40. Kf2 {[%emt 0:00:15]} Re3 {[%emt 0:01:40]} 41. Re1 {[%emt 0:01:19]} Rbb3 {[%emt 0:01:32]} 42. Rde2 {[%emt 0:00:25]} Rxe2+ {[%emt 0:05:47]} 43. Rxe2 {[%emt 0:00:03]} Bf7 {[%emt 0:00:45]} 44. Rc2 {[%emt 0:01:14]} Rb6 {[%emt 0:01:47]} 45. Rc6+ {[%emt 0:00:34]} Rxc6 {[%emt 0:00:10]} 46. Bxc6 {[%emt 0:00:01]} Kg6 {[%emt 0:01:30]} 47. Be4+ {[%emt 0:00:05]} Kh6 {[%emt 0:00:33]} 48. Bb7 {[%emt 0:00:26]} Kh5 {[%emt 0:01:04]} 49. g3 {[%emt 0:01:24]} Be6 {[%emt 0:02:02]} 50. Bf3+ {[%emt 0:00:19]} Kg6 {[%emt 0:00:44]} 51. Be4+ {[%emt 0:00:29]} Bf5 {[%emt 0:00:50]} 52. Bg2 {[%emt 0:00:04]} h5 {[%emt 0:00:41]} 53. h4 {[%emt 0:01:07]} 1/2-1/2

[Event "1st Gujarat GM Open 2018"]
[Site "Ahmedabad"]
[Date "2018.10.09"]
[Round "6"]
[White "Suvradeepta, Das"]
[Black "Balaji Sekar"]
[Result "1/2-1/2"]
[ECO "A28"]
[WhiteElo "2005"]
[BlackElo "1189"]
[Annotator "NA RC"]
[PlyCount "74"]
[EventDate "2018.10.05"]
[EventType "swiss"]
[EventCountry "IND"]
[SourceTitle "playchess.com"]
[Source "ChessBase"]
[SourceQuality "1"]
[TimeControl "5400+30"]

1. c4 {[%emt 0:08:49]} Nf6 {[%emt 0:00:00]} 2. Nc3 {[%emt 0:00:07]} e5 {[%emt 0:00:00]} 3. Nf3 {[%emt 0:00:09]} Nc6 {[%emt 0:00:00]} 4. e3 {[%emt 0:00:05]} Bb4 {[%emt 0:00:01]} 5. Qc2 {[%emt 0:00:07]} Bxc3 {[%emt 0:00:04]} 6. Qxc3 {[%emt 0:00:05]} Qe7 {[%emt 0:00:03]} 7. b3 {[%emt 0:00:12]} O-O {[%emt 0:06:49]} 8. Bb2 {[%emt 0:00:12]} Re8 {[%emt 0:00:55]} 9. Be2 {[%emt 0:00:49]} d6 {[%emt 0:07:03]} 10. O-O {[%emt 0:01:17]} Bf5 {[%emt 0:08:12]} 11. d4 {[%emt 0:09:40]} Ne4 {[%emt 0:09:14]} 12. Qc1 {[%emt 0:01:09]} Bg6 {[%emt 0:04:00]} 13. d5 {[%emt 0:03:29]} Nb8 {[%emt 0:00:59]} 14. Nd2 {[%emt 0:01:34]} Nc5 {[%emt 0:00:39]} 15. Qd1 {[%emt 0:15:46]} c6 {[%emt 0:09:41]} 16. b4 {[%emt 0:07:18]} Nd3 {[%emt 0:02:36]} 17. Bc3 {[%emt 0:09:36]} cxd5 {[%emt 0:00:17]} 18. cxd5 {[%emt 0:00:15]} Nd7 {[%emt 0:03:07]} 19. Bxd3 {[%emt 0:20:55]} Bxd3 {[%emt 0:00:02]} 20. Re1 {[%emt 0:00:01]} f5 {[%emt 0:11:01]} 21. Qb3 {[%emt 0:04:04]} e4 {[%emt 0:10:33]} 22. Rac1 {[%emt 0:00:44]} Qf7 {[%emt 0:11:11]} 23. Bd4 {[%emt 0:02:07]} Ne5 {[%emt 0:08:39]} 24. Rc3 {[%emt 0:00:22]} b5 {[%emt 0:00:52]} 25. Bxe5 {[%emt 0:03:42]} dxe5 {[%emt 0:02:37]} 26. Rec1 {[%emt 0:00:30]} Red8 {[%emt 0:02:53]} 27. Rc5 {[%emt 0:01:38]} f4 {[%emt 0:00:47]} 28. d6 {[%emt 0:02:18]} Rxd6 {[%emt 0:00:29]} 29. Qxf7+ {[%emt 0:01:35]} Kxf7 {[%emt 0:00:01]} 30. Rxe5 {[%emt 0:00:01]} fxe3 {[%emt 0:01:07]} 31. fxe3 {[%emt 0:00:02]} Kf6 {[%emt 0:00:25]} 32. Rcc5 {[%emt 0:00:50]} Re6 {[%emt 0:00:44]} 33. Rf5+ {[%emt 0:00:28]} Kg6 {[%emt 0:00:11]} 34. Rg5+ {[%emt 0:01:43]} Kh6 {[%emt 0:00:03]} 35. Rh5+ {[%emt 0:01:33]} Kg6 {[%emt 0:00:01]} 36. Rhg5+ {[%emt 0:00:15]} Kh6 {[%emt 0:00:01]} 37. Rh5+ {[%emt 0:00:21]} Kg6 {[%emt 0:00:00]} 1/2-1/2

[Event "1st Gujarat GM Open 2018"]
[Site "Ahmedabad"]
[Date "2018.10.09"]
[Round "6"]
[White "Ayushh, Ravikumar"]
[Black "Barath Kalyan M"]
[Result "0-1"]
[ECO "E21"]
[WhiteElo "1843"]
[BlackElo "2084"]
[Annotator "NA RC"]
[PlyCount "92"]
[EventDate "2018.10.05"]
[EventType "swiss"]
[EventCountry "IND"]
[SourceTitle "playchess.com"]
[Source "ChessBase"]
[SourceQuality "1"]
[TimeControl "5400+30"]

1. d4 {[%emt 0:00:00]} Nf6 {[%emt 0:00:24]} 2. Nf3 {[%emt 0:00:13]} e6 {[%emt 0:01:04]} 3. c4 {[%emt 0:00:40]} Bb4+ {[%emt 0:01:11]} 4. Nc3 {[%emt 0:00:38]} O-O {[%emt 0:03:11]} 5. Bg5 {[%emt 0:00:40]} d6 {[%emt 0:00:53]} 6. a3 {[%emt 0:04:03]} Bxc3+ {[%emt 0:00:16]} 7. bxc3 {[%emt 0:00:06]} Nbd7 {[%emt 0:00:10]} 8. e3 {[%emt 0:01:41]} Qe8 {[%emt 0:00:34]} 9. Bxf6 {[%emt 0:02:55]} Nxf6 {[%emt 0:00:07]} 10. Be2 {[%emt 0:00:41]} b6 {[%emt 0:02:02]} 11. O-O {[%emt 0:01:16]} Bb7 {[%emt 0:01:30]} 12. Nd2 {[%emt 0:02:14]} e5 {[%emt 0:00:24]} 13. Re1 {[%emt 0:03:42]} Qe7 {[%emt 0:01:21]} 14. a4 {[%emt 0:06:28]} a5 {[%emt 0:01:48]} 15. Qc2 {[%emt 0:01:44]} Nd7 {[%emt 0:02:41]} 16. Bf3 {[%emt 0:05:25]} Bxf3 {[%emt 0:01:23]} 17. Nxf3 {[%emt 0:00:05]} f5 {[%emt 0:00:26]} 18. Nd2 {[%emt 0:03:55]} Qg5 {[%emt 0:05:44]} 19. Qd3 {[%emt 0:09:11]} Rae8 {[%emt 0:05:14]} 20. e4 {[%emt 0:02:19]} f4 {[%emt 0:09:23]} 21. f3 {[%emt 0:08:09]} Rf6 {[%emt 0:01:20]} 22. Re2 {[%emt 0:01:50]} Rh6 {[%emt 0:00:16]} 23. Nf1 {[%emt 0:00:29]} Qe7 {[%emt 0:00:52]} 24. Rc2 {[%emt 0:02:54]} g5 {[%emt 0:00:17]} 25. g4 {[%emt 0:03:20]} Rh4 {[%emt 0:01:05]} 26. Rg2 {[%emt 0:11:04]} Kg7 {[%emt 0:00:45]} 27. Kf2 {[%emt 0:01:01]} Rh8 {[%emt 0:00:23]} 28. Ra2 {[%emt 0:02:00]} Rh3 {[%emt 0:00:37]} 29. Ke1 {[%emt 0:02:16]} Kf7 {[%emt 0:00:37]} 30. Rg1 {[%emt 0:00:59]} Nf6 {[%emt 0:00:56]} 31. Rag2 {[%emt 0:04:58]} Qe8 {[%emt 0:01:49]} 32. Qd1 {[%emt 0:02:21]} h5 {[%emt 0:05:35]} 33. gxh5 {[%emt 0:01:03]} g4 {[%emt 0:02:27]} 34. Rxg4 {[%emt 0:01:54]} Nxg4 {[%emt 0:00:14]} 35. Rxg4 {[%emt 0:00:06]} R3xh5 {[%emt 0:00:21]} 36. Qc2 {[%emt 0:04:42]} Rg8 {[%emt 0:05:11]} 37. Rxg8 {[%emt 0:03:57]} Qxg8 {[%emt 0:00:47]} 38. c5 {[%emt 0:03:35]} Kf6 {[%emt 0:00:41]} 39. cxb6 {[%emt 0:00:54]} cxb6 {[%emt 0:00:10]} 40. Qb2 {[%emt 0:01:24]} Qc4 {[%emt 0:00:33]} 41. Nd2 {[%emt 0:02:33]} Qc6 {[%emt 0:01:34]} 42. Nf1 {[%emt 0:00:47]} Rg5 {[%emt 0:02:50]} 43. Kf2 {[%emt 0:00:42]} Qxa4 {[%emt 0:00:39]} 44. Qxb6 {[%emt 0:00:34]} Qc2+ {[%emt 0:00:07]} 45. Ke1 {[%emt 0:00:06]} Qxc3+ {[%emt 0:00:07]} 46. Kf2 {[%emt 0:00:53]} Qxd4+ {[%emt 0:00:07]} 0-1